[Event "*** Titled Tuesday Blitz"]
[Site "Chess.com"]
[Date "2019.07.02"]
[Round "2"]
[White "JonahWillow"]
[Black "tigra"]
[Result "0-1"]
[WhiteElo "2698"]
[BlackElo "2754"]
[TimeControl "180+2"]
[EndTime "13:25:17 PDT"]
[Termination "tigra won by resignation"]

1. e4 {[%clk 0:03:01.9]} 1... e6 {[%clk 0:02:59.2]} 2. d4 {[%clk 0:03:01.8]}
2... d5 {[%clk 0:03:00.4]} 3. Nd2 {[%clk 0:03:03.7]} 3... Be7 {[%clk 0:02:59.9]}
4. e5 {[%clk 0:02:42.9]} 4... c5 {[%clk 0:02:59.9]} 5. c3 {[%clk 0:02:44.8]}
5... Nc6 {[%clk 0:03:00.4]} 6. Bd3 {[%clk 0:02:46.5]} 6... Qb6 {[%clk
0:02:51.8]} 7. Qg4 {[%clk 0:02:18.2]} 7... Kf8 {[%clk 0:02:51.7]} 8. Ne2 {[%clk
0:02:14.7]} 8... h5 {[%clk 0:02:49.7]} 9. Qf4 {[%clk 0:02:09]} 9... cxd4 {[%clk
0:02:50.1]} 10. cxd4 {[%clk 0:02:08.6]} 10... Nb4 {[%clk 0:02:51]} 11. Bg6
{[%clk 0:02:00.9]} 11... f5 {[%clk 0:02:47.8]} 12. exf6 {[%clk 0:01:58.5]} 12...
gxf6 {[%clk 0:02:47.1]} 13. a3 {[%clk 0:01:59.3]} 13... Qa6 {[%clk 0:02:34.8]}
14. axb4 {[%clk 0:01:37.3]} 14... Qxa1 {[%clk 0:02:34.4]} 15. O-O {[%clk
0:01:39.2]} 15... Bxb4 {[%clk 0:02:22.9]} 16. Ng3 {[%clk 0:01:33.3]} 16... Qa6
{[%clk 0:02:15.7]} 17. Nxh5 {[%clk 0:01:31.1]} 17... Bd6 {[%clk 0:02:13.8]} 18.
Qf3 {[%clk 0:01:28.9]} 18... Ke7 {[%clk 0:02:08.7]} 19. Re1 {[%clk 0:01:26.7]}
19... Bd7 {[%clk 0:02:06.6]} 20. Qxd5 {[%clk 0:01:19.9]} 20... Rc8 {[%clk
0:02:01]} 21. Qf3 {[%clk 0:01:13.8]} 21... Qc6 {[%clk 0:01:55.3]} 22. d5 {[%clk
0:01:09.2]} 22... Qxc1 {[%clk 0:01:50.6]} 23. Rxc1 {[%clk 0:01:10.2]} 23...
Rxc1+ {[%clk 0:01:51.6]} 24. Nf1 {[%clk 0:01:11.9]} 24... Bb5 {[%clk 0:01:49.2]}
25. Bd3 {[%clk 0:01:03.4]} 25... Rxh5 {[%clk 0:01:47.8]} 26. Bxb5 {[%clk
0:00:54.7]} 26... Bxh2+ {[%clk 0:01:47.1]} 27. Kh1 {[%clk 0:00:56.2]} 27... Rxd5
{[%clk 0:01:26.2]} 28. Qa3+ {[%clk 0:00:40.4]} 28... Bd6 {[%clk 0:01:24.2]} 29.
Qb3 {[%clk 0:00:19.4]} 29... Nh6 {[%clk 0:00:46.7]} 30. g3 {[%clk 0:00:19.5]}
30... Ng4 {[%clk 0:00:38.8]} 31. Kg2 {[%clk 0:00:18.4]} 31... Rf5 {[%clk
0:00:32.6]} 32. f4 {[%clk 0:00:11.1]} 32... Rfc5 {[%clk 0:00:19.3]} 33. Be2
{[%clk 0:00:11.2]} 33... R5c2 {[%clk 0:00:19.8]} 34. Qxb7+ {[%clk 0:00:11.9]}
34... Bc7 {[%clk 0:00:20.9]} 35. Kf3 {[%clk 0:00:11.2]} 35... f5 {[%clk
0:00:20.9]} 36. Qb4+ {[%clk 0:00:11.7]} 36... Bd6 {[%clk 0:00:21.2]} 37. Qb7+
{[%clk 0:00:13]} 37... Kf6 {[%clk 0:00:22]} 38. Ne3 {[%clk 0:00:08.5]} 38...
Nh2+ {[%clk 0:00:17.6]} 39. Kf2 {[%clk 0:00:07.3]} 39... Bc5 {[%clk 0:00:18.9]}
40. Qh7 {[%clk 0:00:07.2]} 40... Rf1+ {[%clk 0:00:19.3]} 41. Kg2 {[%clk
0:00:06.6]} 41... Rxe2+ {[%clk 0:00:21.2]} 42. Kh3 {[%clk 0:00:06.9]} 42... Bxe3
{[%clk 0:00:12.6]} 43. Qh8+ {[%clk 0:00:07.2]} 43... Ke7 {[%clk 0:00:13.3]} 44.
Qg7+ {[%clk 0:00:08.7]} 44... Kd6 {[%clk 0:00:14.3]} 45. Qe5+ {[%clk 0:00:10.1]}
45... Kd7 {[%clk 0:00:15.6]} 46. Qg7+ {[%clk 0:00:10.6]} 46... Kc6 {[%clk
0:00:16.8]} 47. Qc3+ {[%clk 0:00:11.9]} 47... Bc5 {[%clk 0:00:17.1]} 48. Qc4
{[%clk 0:00:10.6]} 48... Ng4 {[%clk 0:00:16.5]} 49. Qa6+ {[%clk 0:00:09.7]}
49... Bb6 {[%clk 0:00:17.6]} 50. Qc4+ {[%clk 0:00:10.5]} 50... Kd6 {[%clk
0:00:18.6]} 51. Qd3+ {[%clk 0:00:11.5]} 51... Ke7 {[%clk 0:00:19.5]} 52. Qxe2
{[%clk 0:00:08.1]} 52... Rh1+ {[%clk 0:00:20.2]} 53. Kg2 {[%clk 0:00:09.7]}
53... Rh2+ {[%clk 0:00:21.4]} 0-1

[Event "*** Titled Tuesday Blitz"]
[Site "Chess.com"]
[Date "2019.07.02"]
[Round "2"]
[White "Der_Honigdachs"]
[Black "amylazy"]
[Result "0-1"]
[WhiteElo "2591"]
[BlackElo "2408"]
[TimeControl "180+2"]
[EndTime "13:25:18 PDT"]
[Termination "amylazy won by checkmate"]

1. d4 {[%clk 0:03:01.9]} 1... Nf6 {[%clk 0:03:00.2]} 2. c4 {[%clk 0:03:01]} 2...
g6 {[%clk 0:03:00.4]} 3. Nc3 {[%clk 0:03:01.3]} 3... d5 {[%clk 0:03:00.3]} 4.
Nf3 {[%clk 0:03:01.6]} 4... Bg7 {[%clk 0:03:00.6]} 5. h4 {[%clk 0:03:03.1]} 5...
h6 {[%clk 0:03:01.1]} 6. cxd5 {[%clk 0:03:02.7]} 6... Nxd5 {[%clk 0:03:02]} 7.
e4 {[%clk 0:03:04.3]} 7... Nxc3 {[%clk 0:03:03.2]} 8. bxc3 {[%clk 0:03:06.2]}
8... c5 {[%clk 0:03:04.4]} 9. Be3 {[%clk 0:03:07]} 9... Qa5 {[%clk 0:03:05.1]}
10. Qd2 {[%clk 0:03:02.6]} 10... cxd4 {[%clk 0:03:06.1]} 11. cxd4 {[%clk
0:03:04.5]} 11... Qxd2+ {[%clk 0:03:06.9]} 12. Kxd2 {[%clk 0:03:03.8]} 12... Nc6
{[%clk 0:03:07.4]} 13. d5 {[%clk 0:03:02.5]} 13... Bxa1 {[%clk 0:03:07]} 14. Bb5
{[%clk 0:02:56.6]} 14... Bg7 {[%clk 0:02:49]} 15. dxc6 {[%clk 0:02:57]} 15...
O-O {[%clk 0:02:49.9]} 16. Bf4 {[%clk 0:02:37.7]} 16... Rd8+ {[%clk 0:02:26.3]}
17. Ke3 {[%clk 0:02:34.4]} 17... bxc6 {[%clk 0:02:09.1]} 18. Bxc6 {[%clk
0:02:34.2]} 18... Ba6 {[%clk 0:02:05.6]} 19. Be5 {[%clk 0:01:15.8]} 19... Rac8
{[%clk 0:01:58]} 20. Bd5 {[%clk 0:01:15]} 20... e6 {[%clk 0:01:54.2]} 21. Bb3
{[%clk 0:01:14.3]} 21... Rd3+ {[%clk 0:01:46.5]} 22. Kf4 {[%clk 0:01:15.4]}
22... Rxf3+ {[%clk 0:01:26.7]} 23. gxf3 {[%clk 0:01:13.9]} 23... g5+ {[%clk
0:01:27.5]} 24. hxg5 {[%clk 0:01:15.8]} 24... hxg5+ {[%clk 0:01:28.4]} 25. Kxg5
{[%clk 0:01:15.2]} 25... Bxe5 {[%clk 0:01:29.4]} 26. f4 {[%clk 0:01:13.3]} 26...
Bd4 {[%clk 0:01:13.3]} 27. f5 {[%clk 0:01:11.1]} 27... exf5 {[%clk 0:01:05.1]}
28. Kxf5 {[%clk 0:01:11.1]} 28... Rc5+ {[%clk 0:01:01.4]} 29. Bd5 {[%clk
0:01:08.2]} 29... Bb7 {[%clk 0:00:52.1]} 30. Rd1 {[%clk 0:01:08.3]} 30... Bxf2
{[%clk 0:00:42.6]} 31. Ke5 {[%clk 0:00:55.3]} 31... Kf8 {[%clk 0:00:22]} 32. Kd6
{[%clk 0:00:46.5]} 32... Bxd5 {[%clk 0:00:22.6]} 33. exd5 {[%clk 0:00:48.4]}
33... Rc8 {[%clk 0:00:17.8]} 34. Kd7 {[%clk 0:00:47.8]} 34... Re8 {[%clk
0:00:18.6]} 35. d6 {[%clk 0:00:48.2]} 35... Bb6 {[%clk 0:00:20]} 36. Kc6 {[%clk
0:00:46.1]} 36... Rd8 {[%clk 0:00:21.9]} 37. a4 {[%clk 0:00:41.7]} 37... f6
{[%clk 0:00:21.2]} 38. Rd5 {[%clk 0:00:40.5]} 38... Kf7 {[%clk 0:00:22.2]} 39.
a5 {[%clk 0:00:41.5]} 39... Be3 {[%clk 0:00:23.2]} 40. Rd3 {[%clk 0:00:39]}
40... Bf4 {[%clk 0:00:23.7]} 41. d7 {[%clk 0:00:40.5]} 41... Ke7 {[%clk
0:00:23.6]} 42. Rd4 {[%clk 0:00:41.8]} 42... Be5 {[%clk 0:00:24.6]} 43. Rd1
{[%clk 0:00:41.7]} 43... Ke6 {[%clk 0:00:24.2]} 44. a6 {[%clk 0:00:39.7]} 44...
f5 {[%clk 0:00:25.3]} 45. Re1 {[%clk 0:00:39.8]} 45... f4 {[%clk 0:00:25.9]} 46.
Rh1 {[%clk 0:00:18.8]} 46... Rxd7 {[%clk 0:00:24.4]} 47. Rh6+ {[%clk 0:00:19.8]}
47... Bf6 {[%clk 0:00:25.5]} 48. Rxf6+ {[%clk 0:00:21.2]} 48... Kxf6 {[%clk
0:00:27.4]} 49. Kxd7 {[%clk 0:00:22.8]} 49... f3 {[%clk 0:00:28.8]} 50. Kc7
{[%clk 0:00:24.7]} 50... f2 {[%clk 0:00:30.3]} 51. Kb7 {[%clk 0:00:26.6]} 51...
f1=Q {[%clk 0:00:32.1]} 52. Kxa7 {[%clk 0:00:28.5]} 52... Qf3 {[%clk 0:00:31.5]}
53. Kb8 {[%clk 0:00:28.4]} 53... Qb3+ {[%clk 0:00:32.1]} 54. Kc7 {[%clk
0:00:29.4]} 54... Qc4+ {[%clk 0:00:33.1]} 55. Kb7 {[%clk 0:00:30.6]} 55... Qb5+
{[%clk 0:00:34.1]} 56. Ka7 {[%clk 0:00:23.7]} 56... Ke7 {[%clk 0:00:34.6]} 57.
Ka8 {[%clk 0:00:25.2]} 57... Qxa6+ {[%clk 0:00:35.5]} 58. Kb8 {[%clk 0:00:27.1]}
58... Qb6+ {[%clk 0:00:35.9]} 59. Kc8 {[%clk 0:00:29]} 59... Qc6+ {[%clk
0:00:36.7]} 60. Kb8 {[%clk 0:00:30.3]} 60... Qd7 {[%clk 0:00:37.6]} 61. Ka8
{[%clk 0:00:31.5]} 61... Kd6 {[%clk 0:00:39.1]} 62. Kb8 {[%clk 0:00:33.4]} 62...
Kc6 {[%clk 0:00:41]} 63. Ka8 {[%clk 0:00:34.8]} 63... Qb7# {[%clk 0:00:42.6]}
0-1

[Event "*** Titled Tuesday Blitz"]
[Site "Chess.com"]
[Date "2019.07.02"]
[Round "2"]
[White "DACF2905"]
[Black "DerSchachaffe"]
[Result "0-1"]
[WhiteElo "2217"]
[BlackElo "2334"]
[TimeControl "180+2"]
[EndTime "13:25:26 PDT"]
[Termination "DerSchachaffe won by resignation"]

1. e4 {[%clk 0:03:01.9]} 1... c5 {[%clk 0:01:49]} 2. Nf3 {[%clk 0:03:00.9]} 2...
d6 {[%clk 0:01:47.2]} 3. d4 {[%clk 0:03:00.9]} 3... cxd4 {[%clk 0:01:48.5]} 4.
Nxd4 {[%clk 0:03:01.1]} 4... Nf6 {[%clk 0:01:49.9]} 5. Nc3 {[%clk 0:03:01.4]}
5... a6 {[%clk 0:01:51.3]} 6. Bg5 {[%clk 0:03:01.7]} 6... Nbd7 {[%clk
0:01:52.2]} 7. f4 {[%clk 0:03:02.4]} 7... Qc7 {[%clk 0:01:52.9]} 8. Qf3 {[%clk
0:03:03.2]} 8... b5 {[%clk 0:01:53.3]} 9. a3 {[%clk 0:02:36.1]} 9... Bb7 {[%clk
0:01:51.3]} 10. Be2 {[%clk 0:02:36.2]} 10... h6 {[%clk 0:01:48.9]} 11. Bxf6
{[%clk 0:02:36.1]} 11... Nxf6 {[%clk 0:01:49.8]} 12. O-O-O {[%clk 0:02:34.1]}
12... e5 {[%clk 0:01:39.4]} 13. fxe5 {[%clk 0:02:32.9]} 13... dxe5 {[%clk
0:01:40.1]} 14. Nf5 {[%clk 0:02:33.5]} 14... Rc8 {[%clk 0:01:38.7]} 15. Qd3
{[%clk 0:01:43.8]} 15... g6 {[%clk 0:01:28.2]} 16. Nd6+ {[%clk 0:01:42]} 16...
Bxd6 {[%clk 0:01:28.8]} 17. Qxd6 {[%clk 0:01:42]} 17... Nxe4 {[%clk 0:01:20.9]}
18. Qxc7 {[%clk 0:01:13.3]} 18... Rxc7 {[%clk 0:01:20.5]} 19. Nxe4 {[%clk
0:01:11.5]} 19... Bxe4 {[%clk 0:01:21.1]} 20. c3 {[%clk 0:01:12.5]} 20... Bxg2
{[%clk 0:01:19.8]} 21. Rhg1 {[%clk 0:01:12]} 21... Bc6 {[%clk 0:01:14.6]} 22.
Rd6 {[%clk 0:01:08.4]} 22... Ke7 {[%clk 0:01:13.3]} 23. Rgd1 {[%clk 0:01:06]}
23... h5 {[%clk 0:00:54.3]} 24. h4 {[%clk 0:01:05.1]} 24... Re8 {[%clk
0:00:47.9]} 25. Kc2 {[%clk 0:01:05.8]} 25... Kf8 {[%clk 0:00:46.7]} 26. Kb3
{[%clk 0:01:06.6]} 26... a5 {[%clk 0:00:41.8]} 27. c4 {[%clk 0:00:57.5]} 27...
bxc4+ {[%clk 0:00:38.8]} 28. Bxc4 {[%clk 0:00:57.1]} 28... Ba4+ {[%clk
0:00:34.4]} 29. Kxa4 {[%clk 0:00:55.8]} 29... Rxc4+ {[%clk 0:00:35.5]} 30. Kxa5
{[%clk 0:00:54.9]} 30... Rxh4 {[%clk 0:00:33.6]} 31. b4 {[%clk 0:00:52.6]} 31...
e4 {[%clk 0:00:30.8]} 32. b5 {[%clk 0:00:52.4]} 32... e3 {[%clk 0:00:31.9]} 33.
b6 {[%clk 0:00:53.4]} 33... e2 {[%clk 0:00:32.4]} 34. Re1 {[%clk 0:00:54.2]}
34... Ra8+ {[%clk 0:00:23.5]} 35. Kb5 {[%clk 0:00:55.1]} 35... Rxa3 {[%clk
0:00:20.3]} 36. Rxe2 {[%clk 0:00:51.9]} 36... Rb3+ {[%clk 0:00:20.1]} 37. Ka6
{[%clk 0:00:52.3]} 37... Ra4+ {[%clk 0:00:20]} 38. Kb7 {[%clk 0:00:53.4]} 38...
h4 {[%clk 0:00:15]} 39. Kc7 {[%clk 0:00:49.3]} 39... Rc4+ {[%clk 0:00:13.4]} 40.
Rc6 {[%clk 0:00:50.2]} 40... Rxc6+ {[%clk 0:00:14.1]} 41. Kxc6 {[%clk
0:00:51.5]} 41... g5 {[%clk 0:00:13.4]} 42. b7 {[%clk 0:00:47.7]} 42... Kg7
{[%clk 0:00:13.5]} 43. Re5 {[%clk 0:00:48]} 43... Rxb7 {[%clk 0:00:13.4]} 44.
Kxb7 {[%clk 0:00:39.6]} 44... Kg6 {[%clk 0:00:10.1]} 45. Kc6 {[%clk 0:00:39.5]}
45... h3 {[%clk 0:00:10.9]} 46. Re2 {[%clk 0:00:39.6]} 46... g4 {[%clk
0:00:11.8]} 47. Kd5 {[%clk 0:00:40.7]} 47... g3 {[%clk 0:00:11.6]} 48. Re3
{[%clk 0:00:41.6]} 48... g2 {[%clk 0:00:10]} 49. Rxh3 {[%clk 0:00:42.4]} 49...
g1=Q {[%clk 0:00:10.8]} 50. Ke5 {[%clk 0:00:44.3]} 50... Qg2 {[%clk 0:00:09.4]}
51. Re3 {[%clk 0:00:44.3]} 51... Qg5+ {[%clk 0:00:09.9]} 52. Kd4 {[%clk
0:00:45]} 52... f5 {[%clk 0:00:09.9]} 53. Re6+ {[%clk 0:00:45.1]} 53... Kh5
{[%clk 0:00:11.1]} 54. Ke5 {[%clk 0:00:44.6]} 54... Kg4 {[%clk 0:00:07.9]} 55.
Kd6 {[%clk 0:00:42]} 55... f4 {[%clk 0:00:07.9]} 56. Re4 {[%clk 0:00:41.4]}
56... Kg3 {[%clk 0:00:08.2]} 0-1

[Event "*** Titled Tuesday Blitz"]
[Site "Chess.com"]
[Date "2019.07.02"]
[Round "2"]
[White "HanSchut"]
[Black "Aleksandr_Kholin"]
[Result "0-1"]
[WhiteElo "2213"]
[BlackElo "2366"]
[TimeControl "180+2"]
[EndTime "13:25:29 PDT"]
[Termination "Aleksandr_Kholin won by resignation"]

1. e4 {[%clk 0:03:01.9]} 1... c5 {[%clk 0:03:00]} 2. Nf3 {[%clk 0:03:02.1]} 2...
d6 {[%clk 0:03:01.6]} 3. d4 {[%clk 0:03:03.1]} 3... cxd4 {[%clk 0:03:03.3]} 4.
Nxd4 {[%clk 0:03:04.5]} 4... Nf6 {[%clk 0:03:05]} 5. f3 {[%clk 0:03:05.4]} 5...
a6 {[%clk 0:03:06.6]} 6. c4 {[%clk 0:03:06.5]} 6... e5 {[%clk 0:03:08.1]} 7. Nc2
{[%clk 0:03:07.6]} 7... Be6 {[%clk 0:03:09.8]} 8. Nc3 {[%clk 0:03:08.3]} 8...
Nbd7 {[%clk 0:03:11.5]} 9. Be3 {[%clk 0:03:08.6]} 9... Be7 {[%clk 0:03:12.8]}
10. Qd2 {[%clk 0:03:09.4]} 10... O-O {[%clk 0:03:13.4]} 11. b3 {[%clk
0:03:09.2]} 11... Rc8 {[%clk 0:03:13.6]} 12. Be2 {[%clk 0:03:08.2]} 12... h6
{[%clk 0:03:05.7]} 13. O-O {[%clk 0:03:06.6]} 13... Qc7 {[%clk 0:03:05.7]} 14.
Rac1 {[%clk 0:02:55.4]} 14... Qb8 {[%clk 0:02:38.9]} 15. a4 {[%clk 0:02:41.1]}
15... Nc5 {[%clk 0:02:00]} 16. Rb1 {[%clk 0:02:38.1]} 16... a5 {[%clk
0:02:00.1]} 17. Rfd1 {[%clk 0:02:10.9]} 17... b6 {[%clk 0:01:58]} 18. Nb5 {[%clk
0:01:52.2]} 18... Rfd8 {[%clk 0:01:55.8]} 19. Qe1 {[%clk 0:01:48.9]} 19... Nh5
{[%clk 0:01:54.5]} 20. g3 {[%clk 0:01:45.9]} 20... f5 {[%clk 0:01:53.1]} 21.
exf5 {[%clk 0:01:34.4]} 21... Bxf5 {[%clk 0:01:55]} 22. Rd2 {[%clk 0:01:21.2]}
22... Nf6 {[%clk 0:01:52.9]} 23. Bxc5 {[%clk 0:01:13.8]} 23... bxc5 {[%clk
0:01:52.9]} 24. Rbd1 {[%clk 0:01:13.3]} 24... Rc6 {[%clk 0:01:46.6]} 25. Ne3
{[%clk 0:01:13.5]} 25... Bd7 {[%clk 0:01:45.3]} 26. Nd5 {[%clk 0:01:12.8]} 26...
Nxd5 {[%clk 0:01:42.8]} 27. Rxd5 {[%clk 0:01:14.7]} 27... Rb6 {[%clk 0:01:41.5]}
28. Qf2 {[%clk 0:01:09.1]} 28... Bc6 {[%clk 0:01:40.2]} 29. R5d3 {[%clk
0:01:08.4]} 29... Rf8 {[%clk 0:01:38.5]} 30. Qg2 {[%clk 0:01:08.9]} 30... Rf6
{[%clk 0:01:37]} 31. Qh3 {[%clk 0:01:04.2]} 31... Qf8 {[%clk 0:01:33.1]} 32. Rf1
{[%clk 0:01:00.7]} 32... Rb7 {[%clk 0:01:31.5]} 33. Qg4 {[%clk 0:00:53.3]} 33...
Kh7 {[%clk 0:01:27.2]} 34. f4 {[%clk 0:00:54.1]} 34... g6 {[%clk 0:01:24.8]} 35.
fxe5 {[%clk 0:00:49.1]} 35... h5 {[%clk 0:01:23.7]} 36. Qh3 {[%clk 0:00:19.5]}
36... Rxf1+ {[%clk 0:01:22.6]} 37. Qxf1 {[%clk 0:00:20]} 37... Qxf1+ {[%clk
0:01:21.4]} 38. Bxf1 {[%clk 0:00:21.9]} 38... dxe5 {[%clk 0:01:23.1]} 39. Bg2
{[%clk 0:00:22.2]} 39... e4 {[%clk 0:01:19.7]} 40. Re3 {[%clk 0:00:19.2]} 40...
Bf6 {[%clk 0:01:20.9]} 41. Bxe4 {[%clk 0:00:16.6]} 41... Re7 {[%clk 0:01:19.2]}
42. Bxc6 {[%clk 0:00:15.2]} 42... Rxe3 {[%clk 0:01:18.5]} 43. Bd5 {[%clk
0:00:14.9]} 43... Rxb3 {[%clk 0:01:19.3]} 44. Nd6 {[%clk 0:00:14.4]} 44... Rb4
{[%clk 0:01:16]} 45. Ne4 {[%clk 0:00:12.7]} 45... Bd4+ {[%clk 0:01:15.5]} 46.
Kg2 {[%clk 0:00:14.2]} 46... Rxa4 {[%clk 0:01:17.4]} 47. h4 {[%clk 0:00:13.6]}
47... Ra2+ {[%clk 0:01:18.6]} 48. Kh3 {[%clk 0:00:13]} 48... a4 {[%clk
0:01:20.5]} 49. Ng5+ {[%clk 0:00:13.6]} 49... Kg7 {[%clk 0:01:21.1]} 50. Ne6+
{[%clk 0:00:15.3]} 50... Kf6 {[%clk 0:01:22.2]} 51. g4 {[%clk 0:00:15.4]} 51...
Ra3+ {[%clk 0:01:21.8]} 52. Kg2 {[%clk 0:00:16.3]} 52... hxg4 {[%clk 0:01:23.7]}
53. Nf4 {[%clk 0:00:13.5]} 53... Ra2+ {[%clk 0:01:20.8]} 54. Kg3 {[%clk
0:00:12.7]} 54... a3 {[%clk 0:01:22.7]} 55. Kxg4 {[%clk 0:00:13]} 55... Ra1
{[%clk 0:01:23.3]} 56. Be4 {[%clk 0:00:13.8]} 56... a2 {[%clk 0:01:23.2]} 57.
Nd5+ {[%clk 0:00:15.7]} 57... Ke5 {[%clk 0:01:23.7]} 58. Bxg6 {[%clk 0:00:16.7]}
58... Rg1+ {[%clk 0:01:24.2]} 59. Kh5 {[%clk 0:00:17]} 59... Rxg6 {[%clk
0:01:26.1]} 60. Kxg6 {[%clk 0:00:18.2]} 60... a1=Q {[%clk 0:01:27.5]} 61. h5
{[%clk 0:00:19.7]} 61... Qg1+ {[%clk 0:01:27.8]} 62. Kh7 {[%clk 0:00:21]} 62...
Kd6 {[%clk 0:01:28.6]} 63. h6 {[%clk 0:00:21]} 63... Be3 {[%clk 0:01:29]} 64.
Nf6 {[%clk 0:00:21.1]} 64... Bxh6 {[%clk 0:01:27.9]} 65. Kxh6 {[%clk 0:00:19.2]}
65... Ke5 {[%clk 0:01:28.2]} 66. Nd7+ {[%clk 0:00:18.5]} 66... Kd4 {[%clk
0:01:28.6]} 67. Kh5 {[%clk 0:00:17]} 67... Qh1+ {[%clk 0:01:25.8]} 68. Kg5
{[%clk 0:00:17.5]} 68... Qg2+ {[%clk 0:01:26.6]} 69. Kf6 {[%clk 0:00:18.7]}
69... Qf3+ {[%clk 0:01:26.9]} 70. Ke7 {[%clk 0:00:20]} 70... Qe3+ {[%clk
0:01:24.3]} 71. Kd8 {[%clk 0:00:19.3]} 71... Kxc4 {[%clk 0:01:24.4]} 72. Nb6+
{[%clk 0:00:18]} 72... Kb3 {[%clk 0:01:24.1]} 0-1

[Event "*** Titled Tuesday Blitz"]
[Site "Chess.com"]
[Date "2019.07.02"]
[Round "2"]
[White "chessdjw"]
[Black "Zubrrr"]
[Result "0-1"]
[WhiteElo "2707"]
[BlackElo "2727"]
[TimeControl "180+2"]
[EndTime "13:25:41 PDT"]
[Termination "Zubrrr won by resignation"]

1. Nf3 {[%clk 0:03:01.9]} 1... d6 {[%clk 0:02:59.5]} 2. d4 {[%clk 0:03:02.4]}
2... Nc6 {[%clk 0:03:00.3]} 3. d5 {[%clk 0:03:01.2]} 3... Nb8 {[%clk 0:03:01.1]}
4. c4 {[%clk 0:03:02.5]} 4... g6 {[%clk 0:03:02.4]} 5. Nc3 {[%clk 0:03:03.8]}
5... Bg7 {[%clk 0:03:03.8]} 6. e4 {[%clk 0:03:05.5]} 6... Nf6 {[%clk 0:03:04.9]}
7. h3 {[%clk 0:03:07.1]} 7... O-O {[%clk 0:03:06]} 8. Bd3 {[%clk 0:03:08.3]}
8... a5 {[%clk 0:03:07.3]} 9. O-O {[%clk 0:03:08.8]} 9... Nfd7 {[%clk
0:03:08.4]} 10. Be3 {[%clk 0:03:08.3]} 10... Na6 {[%clk 0:03:09.5]} 11. Rc1
{[%clk 0:03:08.2]} 11... Nac5 {[%clk 0:03:10.2]} 12. Bb1 {[%clk 0:03:09]} 12...
e6 {[%clk 0:02:56.2]} 13. b3 {[%clk 0:03:06.2]} 13... Qe7 {[%clk 0:02:50.3]} 14.
Re1 {[%clk 0:03:04.4]} 14... e5 {[%clk 0:02:50.8]} 15. a3 {[%clk 0:02:58.6]}
15... a4 {[%clk 0:02:48.7]} 16. b4 {[%clk 0:02:36.6]} 16... Nb3 {[%clk
0:02:49.1]} 17. Rc2 {[%clk 0:02:38.2]} 17... Nb6 {[%clk 0:02:26.8]} 18. Nb5
{[%clk 0:02:14.2]} 18... f5 {[%clk 0:02:19]} 19. c5 {[%clk 0:01:56.5]} 19... f4
{[%clk 0:02:08.5]} 20. cxd6 {[%clk 0:01:54.5]} 20... Qf6 {[%clk 0:02:01.6]} 21.
Bxb6 {[%clk 0:01:44.4]} 21... cxb6 {[%clk 0:02:03.5]} 22. Rc7 {[%clk 0:01:40.7]}
22... Rd8 {[%clk 0:01:59.6]} 23. Bd3 {[%clk 0:01:03.6]} 23... Rb8 {[%clk
0:01:45.1]} 24. Qc2 {[%clk 0:00:42.6]} 24... Bd7 {[%clk 0:01:44.6]} 25. Rxd7
{[%clk 0:00:33.7]} 25... Rxd7 {[%clk 0:01:45.4]} 26. Qc4 {[%clk 0:00:30]} 26...
h5 {[%clk 0:01:42]} 27. Bc2 {[%clk 0:00:30.8]} 27... g5 {[%clk 0:01:40]} 28. Nh2
{[%clk 0:00:31.9]} 28... Qg6 {[%clk 0:01:36.5]} 29. Bxb3 {[%clk 0:00:30.1]}
29... axb3 {[%clk 0:01:37.4]} 30. Qxb3 {[%clk 0:00:31.2]} 30... g4 {[%clk
0:01:38.6]} 31. hxg4 {[%clk 0:00:32.3]} 31... hxg4 {[%clk 0:01:39.9]} 32. f3
{[%clk 0:00:33.4]} 32... gxf3 {[%clk 0:01:36.2]} 33. Qxf3 {[%clk 0:00:29.7]}
33... Rc8 {[%clk 0:01:35.8]} 34. Ng4 {[%clk 0:00:29.6]} 34... Rc2 {[%clk
0:01:32.8]} 35. Qh3 {[%clk 0:00:30.3]} 35... Rf7 {[%clk 0:01:29.9]} 36. Rf1
{[%clk 0:00:28.7]} 36... Qxe4 {[%clk 0:01:28.4]} 37. d7 {[%clk 0:00:26.7]} 37...
Rxd7 {[%clk 0:01:28.8]} 38. Nf2 {[%clk 0:00:27.8]} 38... Qxd5 {[%clk 0:01:25.5]}
39. Rd1 {[%clk 0:00:18.7]} 39... Rd2 {[%clk 0:01:13.3]} 40. Rxd2 {[%clk
0:00:19.6]} 40... Qxd2 {[%clk 0:01:14.8]} 41. Qe6+ {[%clk 0:00:20.9]} 41... Kf8
{[%clk 0:01:09.9]} 42. Ne4 {[%clk 0:00:20.6]} 42... Qe1+ {[%clk 0:01:08.5]} 43.
Kh2 {[%clk 0:00:21.8]} 43... Qh4+ {[%clk 0:01:09]} 44. Qh3 {[%clk 0:00:22.6]}
44... Qxh3+ {[%clk 0:01:10]} 45. Kxh3 {[%clk 0:00:24.5]} 45... Rd3+ {[%clk
0:01:03.1]} 46. Kg4 {[%clk 0:00:25.6]} 46... Ke7 {[%clk 0:01:03.8]} 47. a4
{[%clk 0:00:25]} 47... Rb3 {[%clk 0:01:01.9]} 48. Nbc3 {[%clk 0:00:26.3]} 48...
Ke6 {[%clk 0:01:00.5]} 49. b5 {[%clk 0:00:27.8]} 49... Bf6 {[%clk 0:00:50.6]}
50. Kf3 {[%clk 0:00:29.7]} 50... Be7 {[%clk 0:00:50]} 51. Kg4 {[%clk 0:00:30.8]}
51... Ra3 {[%clk 0:00:45.5]} 52. Kh5 {[%clk 0:00:31]} 52... Kf5 {[%clk
0:00:44.4]} 53. g4+ {[%clk 0:00:27.4]} 53... fxg3 {[%clk 0:00:45.3]} 54. Nxg3+
{[%clk 0:00:28.1]} 54... Ke6 {[%clk 0:00:44.1]} 55. Nge4 {[%clk 0:00:28.8]}
55... Bb4 {[%clk 0:00:44]} 56. Ng5+ {[%clk 0:00:29.9]} 56... Kf5 {[%clk
0:00:41.6]} 57. Nce4 {[%clk 0:00:31.8]} 57... Be7 {[%clk 0:00:35.4]} 58. Kh6
{[%clk 0:00:27.4]} 58... Re3 {[%clk 0:00:30.4]} 59. a5 {[%clk 0:00:20.4]} 59...
bxa5 {[%clk 0:00:29.9]} 60. b6 {[%clk 0:00:21.8]} 60... Rxe4 {[%clk 0:00:29.2]}
61. Kh5 {[%clk 0:00:23.7]} 61... Rf4 {[%clk 0:00:25.9]} 0-1